bitfinex/quotes_SOLUSD_20240725
["timestamp","ask_amount","ask_price","bid_price","bid_amount"]
[1721926921026,431.86561295,171.33,171.29,6.3274]
[1721926921229,0.52901295,171.32,171.29,6.3274]
[1721926921520,0.52901295,171.32,171.26,2.44365427]
[1721926921521,20.52901295,171.32,171.26,2.44365427]
[1721926921719,25.8378,171.3,171.26,2.44365427]
[1721926922018,0.52901295,171.31,171.26,2.44365427]
[1721926922317,380.5,171.33,171.26,2.44365427]
[1721926922501,380.5,171.33,171.28,29.58]
[1721926923107,380.5,171.33,171.26,2.44365427]
[1721926923622,0.52901295,171.32,171.26,2.44365427]
[1721926923822,380.5,171.33,171.26,2.44365427]
[1721926924024,380.5,171.33,171.29,15.2799]
[1721926924217,380.5,171.33,171.3,1.16732653]
[1721926924419,380.5,171.33,171.29,15.2799]
[1721926925017,26.10784341,171.4,171.29,15.2799]
[1721926925018,11.94224341,171.4,171.29,15.2799]
[1721926925541,5.8356,171.36,171.29,15.2799]
[1721926925829,0.52901295,171.35,171.26,2.44365427]
[1721926926001,5.8374,171.31,171.26,2.44365427]
[1721926926206,20.52901295,171.38,171.27,1.16783739]
[1721926926407,45.0,171.37,171.27,1.16783739]
[1721926926631,11.94214341,171.4,171.29,22.5455]
[1721926926928,5.8343,171.4,171.3,1.16729591]
[1721926927234,1.01659436,171.42,171.3,1.16729591]
[1721926927526,0.52901295,171.43,171.31,29.58]
[1721926927738,5.8342,171.41,171.31,29.58]
[1721926928222,0.8051762,171.44,171.34,29.58]
[1721926928606,0.8051762,171.44,171.35,1.16683838]
[1721926928803,0.8051762,171.44,171.35,26.5926]
[1721926929100,0.8051762,171.44,171.36,1.16678245]
[1721926929334,0.8051762,171.44,171.35,26.5926]
[1721926929513,0.8051762,171.44,171.35,27.75943845]
[1721926929917,0.8051762,171.44,171.35,26.5926]
[1721926931431,0.52901295,171.43,171.35,26.5926]
[1721926931627,0.8051762,171.44,171.35,26.5926]
[1721926932333,45.8051762,171.44,171.35,26.5926]
[1721926933138,0.8051762,171.44,171.35,26.5926]
[1721926934331,0.8051762,171.44,171.36,16.3641]
[1721926934540,0.8051762,171.44,171.37,20.0]
[1721926934838,0.8051762,171.44,171.38,1.1666472]
[1721926935134,0.8051762,171.44,171.37,20.0]
[1721926935442,0.8051762,171.44,171.38,1.16661483]
[1721926935619,0.8051762,171.44,171.4,6.0828]
[1721926935820,0.8051762,171.44,171.41,21.16652058]
[1721926936012,0.8051762,171.44,171.41,20.0]
[1721926938741,0.8051762,171.44,171.4,6.0828]
[1721926940246,0.8051762,171.44,171.41,20.0]
[1721926940413,0.8051762,171.44,171.41,21.16639263]
[1721926940940,0.8051762,171.44,171.41,20.0]
[1721926941322,0.8051762,171.44,171.43,15.915]
[1721926941620,0.8051762,171.44,171.43,37.08131159]
[1721926942144,6.10206677,171.56,171.44,6.8424]
[1721926942442,12.462518,171.56,171.46,6.6145]
[1721926942622,32.45763792,171.59,171.46,7.78035212]
[1721926942828,39.30218892,171.59,171.47,20.0]
[1721926943236,20.0,171.57,171.47,21.16589292]
[1721926943432,20.52901295,171.57,171.46,6.6145]
[1721926943645,5.8298,171.54,171.46,6.6145]
[1721926945118,25.8292,171.55,171.46,6.6145]
[1721926945320,45.0,171.54,171.46,6.6145]
[1721926945531,12.94537597,171.59,171.46,6.6145]
[1721926945752,12.94537597,171.59,171.47,20.0]
[1721926945753,0.52901295,171.58,171.47,20.0]
[1721926946050,6.10082497,171.59,171.48,1.16587305]
[1721926946217,0.8051762,171.61,171.48,1.16588492]
[1721926946418,0.8051762,171.61,171.52,22.0956]
[1721926946641,0.8051762,171.61,171.53,20.0]
[1721926946813,0.8051762,171.61,171.54,1.16557205]
[1721926947013,0.8051762,171.61,171.53,20.0]
[1721926947219,6.6323762,171.61,171.53,20.0]
[1721926947632,0.8051762,171.61,171.53,20.0]
[1721926948020,6.6322762,171.61,171.53,20.0]
[1721926948215,0.8051762,171.61,171.53,20.0]
[1721926948421,0.8051762,171.61,171.54,1.16569548]
[1721926948622,0.8051762,171.61,171.53,21.16557028]
[1721926950829,0.8051762,171.61,171.53,20.0]
[1721926952550,0.52901295,171.6,171.52,51.4956]
[1721926952751,0.52901295,171.6,171.52,6.5268]
[1721926952956,5.8279,171.59,171.52,6.5268]
[1721926953193,45.52901295,171.6,171.52,6.5268]
[1721926953194,0.52901295,171.58,171.52,6.5268]
[1721926953372,0.8051762,171.61,171.52,6.5268]
[1721926953541,0.52901295,171.6,171.52,6.5268]
[1721926954860,6.35651295,171.6,171.52,6.5268]
[1721926955047,50.8278,171.59,171.52,6.5268]
[1721926955246,20.52901295,171.58,171.52,6.5268]
[1721926955427,45.0,171.59,171.52,6.5268]
[1721926955767,0.52901295,171.58,171.52,6.5268]
[1721926956132,45.0,171.59,171.52,6.5268]
[1721926956133,45.52901295,171.59,171.52,6.5268]
[1721926956637,45.0,171.59,171.52,6.5268]
[1721926956843,1.33418915,171.61,171.52,6.5268]
[1721926957060,6.35651295,171.6,171.52,6.5268]
[1721926957355,45.0,171.59,171.52,6.5268]
[1721926957568,0.52901295,171.58,171.52,6.5268]
[1721926958254,45.0,171.59,171.52,6.5268]
[1721926958459,50.8275,171.6,171.52,6.5268]
[1721926958637,0.52901295,171.58,171.52,6.5268]
[1721926959464,0.8051762,171.61,171.52,6.5268]
[1721926959864,0.8051762,171.61,171.53,20.0]
[1721926960065,0.8051762,171.61,171.54,1.16551825]
[1721926960375,0.8051762,171.61,171.55,1.16552079]
[1721926960955,0.8051762,171.61,171.56,15.8167]
[1721926961346,0.8051762,171.61,171.58,6.6661]
[1721926963085,0.8051762,171.61,171.58,7.8313165]
[1721926963372,0.8051762,171.61,171.59,20.0]
[1721926965049,0.8051762,171.61,171.51,33.09]
[1721926965278,0.8051762,171.61,171.52,22.4351]
[1721926965773,0.8051762,171.61,171.52,23.60081507]
[1721926965982,0.8051762,171.61,171.52,22.4351]
[1721926966278,0.8051762,171.61,171.52,23.60053539]
[1721926966462,0.8051762,171.61,171.53,20.0]
[1721926966974,0.8051762,171.61,171.52,22.4351]
[1721926967374,0.8051762,171.61,171.52,23.6008125]
[1721926968265,0.8051762,171.61,171.53,20.0]
[1721926968944,0.8051762,171.61,171.54,1.16546812]
[1721926969152,0.8051762,171.61,171.55,1.16542507]
[1721926969360,0.8051762,171.61,171.55,1.16531847]
[1721926969559,0.8051762,171.61,171.55,21.16531847]
[1721926969966,0.8051762,171.61,171.55,54.25531847]
[1721926971753,0.8051762,171.61,171.56,45.0]
[1721926972079,0.8051762,171.61,171.57,23.63562683]
[1721926972377,0.8051762,171.61,171.58,3.63548767]
[1721926972557,0.8051762,171.61,171.59,2.47020019]
[1721926985178,0.8051762,171.61,171.52,6.0056]
[1721926985179,5.8285,171.58,171.52,6.0056]
[1721926985369,20.33418915,171.61,171.52,2.47120831]
[1721926985704,50.8277,171.6,171.52,2.47120831]
[1721926986389,5.8279,171.59,171.52,2.47120831]
[1721926986599,45.0,171.58,171.52,2.47120831]
[1721926986893,50.8275,171.6,171.52,2.47120831]
[1721926987888,45.0,171.6,171.52,2.47120831]
[1721926988091,0.33418915,171.61,171.54,29.4]
[1721926988276,0.33418915,171.61,171.55,23.63613085]
[1721926988470,0.33418915,171.61,171.56,2.47063214]
[1721926991677,0.33418915,171.61,171.57,1.1653782]
[1721926991883,0.33418915,171.61,171.58,2.47034416]
[1721926992677,6.16128915,171.61,171.58,2.47034416]
[1721926992893,6.16128915,171.61,171.49,39.1729]
[1721926992894,6.16128915,171.61,171.5,1.16575524]
[1721926993093,6.16128915,171.61,171.51,2.4713524]
[1721926993297,0.33418915,171.61,171.51,2.4713524]
[1721926993600,0.33418915,171.61,171.52,1.1657383]
[1721926993781,0.33418915,171.61,171.53,2.47106425]
[1721926993986,0.33418915,171.61,171.54,1.16552884]
[1721926994183,0.33418915,171.61,171.55,3.63619787]
[1721926994384,0.33418915,171.61,171.56,2.47063214]
[1721926994590,5.8278,171.59,171.56,2.47063214]
[1721926994770,0.33418915,171.61,171.56,2.47063214]
[1721926994975,15.3043,171.6,171.48,48.1298]
[1721926995183,50.8281,171.59,171.5,2.4714965]
[1721926995386,15.3043,171.6,171.51,1.16582898]
[1721926995583,15.3043,171.6,171.52,3.63688111]
[1721926995792,15.3043,171.6,171.53,2.47106425]
[1721926996188,21.1318,171.6,171.53,2.47106425]
[1721926996388,65.0,171.59,171.53,2.47106425]
[1721926996714,5.8287,171.57,171.53,2.47106425]
[1721926996884,65.0,171.59,171.53,2.47106425]
[1721926996885,5.8288,171.56,171.53,2.47106425]
[1721926997085,5.8286,171.57,171.53,2.47106425]
[1721926997280,45.0,171.59,171.46,1.16602805]
[1721926997496,45.0,171.59,171.48,33.08]
[1721926997696,21.1319,171.6,171.49,2.47164062]
[1721926997906,45.0,171.59,171.49,2.47164062]
[1721926998395,45.0,171.59,171.49,22.47164062]
[1721926998582,5.8288,171.56,171.49,22.47164062]
[1721926998782,45.0,171.59,171.49,2.47164062]
[1721926999184,15.3043,171.6,171.5,1.16579606]
[1721926999382,15.3043,171.6,171.51,2.4713524]
[1721926999784,0.33418915,171.61,171.51,2.4713524]
[1721926999785,0.33418915,171.61,171.52,1.16570653]
[1721927000098,0.33418915,171.61,171.53,25.10616425]
[1721927000404,0.33418915,171.61,171.54,21.16543202]
[1721927000721,0.33418915,171.61,171.55,1.16545661]
[1721927000913,0.33418915,171.61,171.55,3.63623277]
[1721927001084,0.33418915,171.61,171.55,2.47077616]
[1721927002393,0.33418915,171.61,171.55,3.63636394]
[1721927003591,0.33418915,171.61,171.56,33.08]
[1721927003804,0.33418915,171.61,171.57,66.16516341]
[1721927004008,0.33418915,171.61,171.58,3.6354417]
[1721927004206,0.33418915,171.61,171.59,2.47020019]
[1721927005619,0.33418915,171.61,171.6,1.16503921]
[1721927005810,0.33418915,171.61,171.6,3.63509545]
[1721927005988,0.33418915,171.61,171.6,2.47005624]
[1721927006621,6.0964562,171.71,171.61,16.5254]
[1721927006797,16.5873762,171.78,171.64,33.08]
[1721927007000,16.5873762,171.78,171.65,3.63396643]
[1721927007206,16.5873762,171.78,171.66,2.46919288]
[1721927007398,16.5873762,171.78,171.67,1.16444113]
[1721927007607,16.5873762,171.78,171.68,43.20365772]
[1721927007796,0.8051762,171.78,171.69,22.46876143]
[1721927007991,0.8051762,171.78,171.7,3.63295534]
[1721927008192,0.8051762,171.78,171.71,2.46847388]
[1721927008391,0.8051762,171.78,171.72,1.16434548]
[1721927008617,0.8051762,171.78,171.73,2.4681864]
[1721927008792,0.8051762,171.78,171.74,1.16428277]
[1721927008996,0.8051762,171.78,171.73,2.4681864]
[1721927009529,0.8051762,171.78,171.74,1.16428262]
[1721927010021,0.8051762,171.78,171.73,2.4681864]
[1721927010315,0.8051762,171.78,171.75,2.46789898]
[1721927018822,0.8051762,171.78,171.69,29.34]
[1721927019016,0.8051762,171.78,171.7,3.63298128]
[1721927019223,0.8051762,171.78,171.71,2.46847388]
[1721927019518,0.8051762,171.78,171.71,3.63284968]
[1721927020230,0.8051762,171.78,171.71,2.46847388]
[1721927021012,20.0,171.77,171.71,2.46847388]
[1721927021322,21.9685762,171.78,171.71,2.46847388]
[1721927021525,5.8221,171.76,171.71,2.46847388]
[1721927021739,5.8225,171.75,171.64,6.026]
[1721927021930,25.8231,171.73,171.65,2.46933673]
[1721927022224,20.0,171.73,171.65,2.46933673]
[1721927022431,45.0,171.72,171.65,2.46933673]
[1721927023432,5.8225,171.75,171.65,2.46933673]
[1721927023606,45.0,171.74,171.65,2.46933673]
[1721927023806,5.8234,171.72,171.65,2.46933673]
[1721927024014,45.0,171.71,171.65,2.46933673]
[1721927024210,45.0,171.74,171.65,2.46933673]
[1721927024412,45.0,171.75,171.65,2.46933673]
[1721927025116,5.8228,171.74,171.65,2.46933673]
[1721927025416,45.0,171.73,171.65,2.46933673]
[1721927025623,25.8227,171.74,171.65,2.46933673]
[1721927025924,5.8234,171.73,171.65,2.46933673]
[1721927026119,45.0,171.72,171.65,2.46933673]
[1721927026725,50.8234,171.72,171.65,2.46933673]
[1721927026911,45.0,171.72,171.65,2.46933673]
[1721927027113,5.8221,171.76,171.65,2.46933673]
[1721927027315,45.0,171.75,171.65,2.46933673]
[1721927027538,45.0,171.76,171.65,2.46933673]
[1721927028029,27.9813762,171.78,171.65,2.46933673]
[1721927028255,5.822,171.76,171.65,2.46933673]
[1721927028430,5.8224,171.75,171.65,2.46933673]
[1721927029007,22.1597762,171.78,171.65,3.63412194]
[1721927029333,5.8217,171.77,171.65,3.63412194]
[1721927029533,5.8217,171.77,171.65,2.46933673]
[1721927029848,5.8217,171.77,171.65,23.63400541]
[1721927030019,16.1472762,171.78,171.65,22.46933673]
[1721927030226,5.8218,171.77,171.65,2.46933673]
[1721927030933,16.1472762,171.78,171.65,3.63409533]
[1721927031328,0.8051762,171.78,171.66,22.4992]
[1721927031635,0.8051762,171.78,171.67,23.63352079]
[1721927031822,0.8051762,171.78,171.68,2.46890523]
[1721927032921,0.8051762,171.78,171.68,3.63340136]
[1721927033122,0.8051762,171.78,171.68,48.63340136]
[1721927033339,0.8051762,171.78,171.69,20.0]
[1721927033646,6.6265762,171.78,171.7,2.46861765]
[1721927033815,0.8051762,171.78,171.7,2.46861765]
[1721927034223,0.8051762,171.78,171.7,3.63317172]
[1721927034834,0.8051762,171.78,171.71,1.16436915]
[1721927035025,0.8051762,171.78,171.72,6.2169]
[1721927035336,0.8051762,171.78,171.73,22.4681864]
[1721927035644,0.8051762,171.78,171.74,2.46804268]
[1721927038121,0.8051762,171.78,171.74,3.63235479]
[1721927038517,0.8051762,171.78,171.74,2.46804268]
[1721927042647,45.8051762,171.78,171.69,6.3366]
[1721927042831,5.8218,171.77,171.69,8.80536143]
[1721927043018,51.6265762,171.78,171.69,8.80536143]
[1721927043645,20.0,171.77,171.69,2.46876143]
[1721927043842,45.0,171.76,171.69,2.46876143]
[1721927044150,65.0,171.76,171.69,2.46876143]
[1721927044335,5.8224,171.75,171.69,2.46876143]
[1721927044535,45.0,171.74,171.69,2.46876143]
[1721927045133,15.4721,171.77,171.69,2.46876143]
[1721927045430,0.8051762,171.78,171.69,2.46876143]
[1721927045834,0.8051762,171.78,171.67,1.16458098]
[1721927046034,0.8051762,171.78,171.67,20.0]
[1721927046258,0.8051762,171.78,171.68,29.35]
[1721927046425,0.8051762,171.78,171.69,20.0]
[1721927047235,0.8051762,171.78,171.7,16.58214683]
[1721927047449,0.8051762,171.78,171.71,50.51437975]
[1721927047662,0.8051762,171.78,171.71,49.35]
[1721927047951,0.8051762,171.78,171.71,50.51440406]
[1721927048138,0.8051762,171.78,171.72,7.33940406]
[1721927048320,0.8051762,171.78,171.73,20.0]
[1721927052663,0.8051762,171.78,171.74,29.35]
[1721927052848,0.8051762,171.78,171.75,20.0]
[1721927054967,6.08444416,171.88,171.77,45.5142]
[1721927055163,6.08444416,171.88,171.8,29.35]
[1721927055460,6.08444416,171.88,171.81,20.0]
[1721927059332,6.08444416,171.88,171.8,20.0]
[1721927061160,6.08444416,171.88,171.8,50.51382349]
[1721927061369,17.27011535,171.93,171.8,50.51382349]
[1721927061539,23.35312021,171.93,171.8,50.51382349]
[1721927061951,5.8172,171.91,171.8,50.51382349]
[1721927062156,5.8172,171.91,171.8,49.35]
[1721927062346,5.8173,171.9,171.81,1.16381985]
[1721927062754,5.8173,171.9,171.8,49.35]
[1721927062935,5.8169,171.92,171.8,49.35]
[1721927063135,45.0,171.91,171.8,49.35]
[1721927063368,23.35312021,171.93,171.8,49.35]
[1721927063552,5.8169,171.92,171.8,49.35]
[1721927063754,5.817,171.91,171.8,49.35]
[1721927064674,46.9439762,171.95,171.8,49.35]
[1721927064675,0.8051762,171.95,171.9,58.7]
[1721927064833,16.05,172.07,171.91,72.69949041]
[1721927065155,16.05,172.07,171.97,29.35]
[1721927065537,5.8124,172.05,171.94,29.35]
[1721927065836,5.8123,172.05,171.94,29.35]
[1721927066256,5.8123,172.05,171.95,1.16294301]
[1721927066442,20.0,172.05,171.93,21.16296175]
[1721927066758,5.8119,172.06,171.93,20.0]
[1721927066956,20.0,172.06,171.93,20.0]
[1721927067172,20.0,172.06,171.91,6.5369]
[1721927067173,5.8143,171.99,171.91,6.5369]
[1721927067356,5.8143,171.99,171.74,20.0]
[1721927067357,20.0,171.97,171.82,15.6002]
[1721927067678,40.0,171.97,171.82,22.1523]
[1721927067964,5.8166,171.93,171.82,22.1523]
[1721927068169,5.8162,171.94,171.82,22.1523]
[1721927068358,5.8167,171.92,171.82,22.1523]
[1721927068555,45.0,171.91,171.82,22.1523]
[1721927068748,45.0,171.91,171.78,6.4598]
[1721927069164,50.8173,171.91,171.78,7.62367254]
[1721927069342,5.8174,171.9,171.78,7.62367254]
[1721927069544,45.0,171.89,171.78,7.62367254]
[1721927069862,45.0,171.91,171.78,6.4598]
[1721927070171,5.8183,171.87,171.78,6.4598]
[1721927070346,45.0,171.86,171.78,6.4598]
[1721927070844,20.8867,171.89,171.78,6.4598]
[1721927071049,45.0,171.88,171.78,6.4598]
[1721927072151,20.0,171.86,171.73,6.4673]
[1721927072356,5.8197,171.83,171.73,6.4673]
[1721927072672,50.819,171.85,171.73,6.4673]
[1721927072961,45.0,171.85,171.73,6.4673]
[1721927073469,46.0139323,171.86,171.73,6.4673]
[1721927073673,1.0139323,171.86,171.74,1.16424517]
[1721927074035,1.0139323,171.86,171.74,21.16424517]
[1721927074871,43.1859,171.93,171.76,32.91]
[1721927075035,1.01355674,171.9,171.77,21.16394573]
[1721927075242,5.8166,171.92,171.77,21.16394573]
[1721927075467,1.01344743,171.91,171.77,21.16394573]
[1721927075669,5.8179,171.89,171.77,20.0]
[1721927075963,5.8184,171.87,171.77,20.0]
[1721927076166,45.0,171.86,171.74,21.1640526]
[1721927077072,1.01344743,171.91,171.74,21.1640526]
[1721927077240,20.0,171.88,171.74,20.0]
[1721927077445,45.0,171.87,171.74,21.16415824]
[1721927077773,5.8187,171.86,171.74,20.0]
[1721927077942,45.0,171.85,171.74,21.16416261]
[1721927078364,45.0,171.85,171.74,20.0]
[1721927078565,45.0,171.86,171.74,21.16415008]
[1721927078754,50.8187,171.86,171.74,20.0]
[1721927079149,45.0,171.86,171.74,21.16419176]
[1721927079759,50.8187,171.86,171.74,20.0]
[1721927080049,45.0,171.86,171.74,21.16414328]
[1721927080252,50.8188,171.86,171.74,20.0]
[1721927080559,45.0,171.86,171.74,20.0]
[1721927080752,5.8207,171.8,171.73,6.4673]
[1721927081154,20.0,171.82,171.73,6.4673]
[1721927081357,45.0,171.81,171.73,6.4673]
[1721927082445,65.0,171.81,171.69,6.5961]
[1721927082667,25.8214,171.78,171.69,6.5961]
[1721927082846,45.0,171.77,171.69,6.5961]
[1721927083676,45.0,171.78,171.69,6.5961]
[1721927083877,50.8214,171.78,171.69,6.5961]
[1721927084174,45.0,171.78,171.69,6.5961]
[1721927084355,50.8217,171.78,171.69,6.5961]
[1721927084557,5.8218,171.77,171.69,6.5961]
[1721927084751,15.3374,171.75,171.64,6.6361]
[1721927085071,15.3374,171.75,171.54,32.91]
[1721927085072,46.0219,171.74,171.57,22.1056]
[1721927085254,20.0,171.69,171.57,22.1056]
[1721927085649,50.8249,171.68,171.57,22.1056]
[1721927085849,45.0,171.68,171.57,22.1056]
[1721927086050,20.0,171.66,171.57,22.1056]
[1721927086357,45.0,171.65,171.57,22.1056]
[1721927086879,45.0,171.65,171.57,6.6361]
[1721927088649,20.0,171.62,171.52,0.8051762]
[1721927088953,45.0,171.61,171.52,0.8051762]
[1721927089574,20.0,171.6,171.52,0.8051762]
[1721927089871,45.0,171.59,171.52,0.8051762]
[1721927090076,5.8292,171.55,171.52,0.8051762]
[1721927090286,20.0,171.56,171.52,0.8051762]
[1721927090481,65.0,171.54,171.52,0.8051762]
[1721927090682,5.8298,171.53,171.52,0.8051762]
[1721927090849,45.0,171.53,171.52,0.8051762]
[1721927091786,65.0,171.53,171.52,0.8051762]
[1721927092083,45.0,171.53,171.52,0.8051762]
[1721927092447,2.47049003,171.58,171.52,0.8051762]
[1721927092666,439.6565,171.63,171.52,0.8051762]
[1721927092667,20.0,171.61,171.52,0.8051762]
[1721927092869,5.8269,171.62,171.52,0.8051762]
[1721927093077,26.09906636,171.64,171.52,0.8051762]
[1721927093078,20.0,171.61,171.52,0.8051762]
[1721927093380,5.8278,171.59,171.52,0.8051762]
[1721927093582,40.0,171.59,171.52,0.8051762]
[1721927094163,5.8284,171.58,171.52,0.8051762]
[1721927094469,20.0,171.61,171.52,0.8051762]
[1721927094470,45.0,171.57,171.52,0.8051762]
[1721927094679,45.0,171.58,171.52,0.8051762]
[1721927095054,20.0,171.56,171.52,0.8051762]
[1721927095367,25.8298,171.53,171.52,0.8051762]
[1721927095566,70.8298,171.53,171.52,0.8051762]
[1721927095758,71.84568565,171.53,171.52,0.8051762]
[1721927095965,46.01588565,171.53,171.52,0.8051762]
[1721927096659,71.84568565,171.53,171.52,0.8051762]
[1721927096987,91.84568565,171.53,171.52,0.8051762]
[1721927098077,25.8323,171.46,171.38,6.16]
[1721927098468,45.0,171.45,171.38,6.16]
[1721927098858,50.8327,171.45,171.38,6.16]
[1721927099175,20.0,171.44,171.38,6.16]
[1721927099481,45.0,171.43,171.38,6.16]
[1721927100356,20.0,171.43,171.35,0.8051762]
[1721927100561,5.834,171.41,171.35,0.8051762]
[1721927100780,45.0,171.42,171.35,0.8051762]
[1721927100781,20.0,171.4,171.35,0.8051762]
[1721927100961,65.0,171.4,171.35,0.8051762]
[1721927101159,20.0,171.39,171.35,0.8051762]
[1721927101364,45.0,171.4,171.35,0.8051762]
[1721927101365,65.0,171.4,171.35,0.8051762]
[1721927101762,45.0,171.4,171.35,0.8051762]
[1721927102187,15.3225,171.44,171.35,0.8051762]
[1721927102484,35.3225,171.44,171.35,0.8051762]
[1721927102684,20.0,171.4,171.35,0.8051762]
[1721927102989,5.8336,171.42,171.35,0.8051762]
[1721927103167,20.0,171.41,171.35,0.8051762]
[1721927103367,20.0,171.39,171.35,0.8051762]
[1721927103688,45.0,171.38,171.35,0.8051762]
[1721927103888,5.8339,171.41,171.35,0.8051762]
[1721927104079,65.0,171.4,171.35,0.8051762]
[1721927104283,45.0,171.4,171.35,0.8051762]
[1721927104484,15.3225,171.44,171.35,0.8051762]
[1721927104991,20.0,171.42,171.35,0.8051762]
[1721927105180,6.09076965,171.45,171.36,17.76097739]
[1721927105496,1.01588565,171.53,171.37,6.5824]
[1721927105673,20.0,171.51,171.38,21.16656724]
[1721927105868,20.0,171.52,171.38,21.16656724]
[1721927106071,1.01588565,171.53,171.38,21.16656724]
[1721927106588,1.01588565,171.53,171.39,45.0]
[1721927106767,1.01588565,171.53,171.4,21.16637301]
[1721927108169,637.1,171.55,171.4,21.16637301]
[1721927108371,637.1,171.55,171.43,32.91]
[1721927108578,637.1,171.55,171.44,21.16608446]
[1721927108875,1.01547014,171.56,171.44,21.16608446]
[1721927109076,5.8275,171.6,171.44,21.16608446]
[1721927109285,1.01542408,171.58,171.44,21.16608446]
[1721927109481,20.0,171.57,171.45,45.0]
[1721927109686,20.0,171.57,171.46,20.0]
[1721927109889,20.0,171.54,171.46,20.0]
[1721927110095,1.01542408,171.58,171.47,1.16626144]
[1721927110900,46.01542408,171.58,171.47,1.16626144]
[1721927111098,51.84362408,171.58,171.44,1.16606091]
[1721927111399,5.8285,171.57,171.44,1.16606091]
[1721927111696,50.8288,171.56,171.44,1.16606091]
[1721927111906,5.8285,171.57,171.44,1.16606091]
[1721927112080,45.0,171.56,171.44,1.16606091]
[1721927112282,50.8288,171.56,171.44,1.16606091]
[1721927112478,45.0,171.56,171.44,1.16610103]
[1721927112795,45.0,171.57,171.45,1.16626329]
[1721927113000,45.0,171.57,171.46,1.16619779]
[1721927113209,50.8288,171.57,171.46,1.16619779]
[1721927113385,45.0,171.57,171.46,1.16619779]
[1721927114013,45.0,171.57,171.43,21.16615967]
[1721927114678,1.01542408,171.58,171.44,32.91]
[1721927114878,1.01542408,171.58,171.46,15.6563]
[1721927115074,1.01542408,171.58,171.47,21.16592283]
[1721927116407,1.01542408,171.58,171.47,20.0]
[1721927116408,5.8289,171.56,171.47,20.0]
[1721927116617,5.8286,171.57,171.47,20.0]
[1721927116900,1.01542408,171.58,171.47,21.16595527]
[1721927120083,1.01542408,171.58,171.48,6.3399]
[1721927120281,1.01542408,171.58,171.49,20.0]
[1721927120496,1.01542408,171.58,171.49,21.16591346]
[1721927120701,1.01542408,171.58,171.49,20.0]
[1721927120985,6.09721092,171.62,171.49,21.16581213]
[1721927121186,5.8258,171.65,171.49,21.16581213]
[1721927121396,6.84081246,171.65,171.49,21.16581213]
[1721927121589,1.01501246,171.65,171.49,21.16581213]
[1721927121796,1.01501246,171.65,171.53,6.4761]
[1721927122015,1.01501246,171.65,171.55,16.2108]
[1721927122325,16.6658,171.72,171.56,66.1653487]
[1721927122610,11.91998905,171.72,171.56,99.0753487]
[1721927122916,1.01455681,171.71,171.57,6.2954]
[1721927123212,1.01455681,171.71,171.58,66.1651222]
[1721927123509,37.81540435,171.78,171.58,66.1651222]
[1721927123510,5.8226,171.75,171.58,66.1651222]
[1721927123681,26.09271502,171.76,171.58,66.1651222]
[1721927123682,1.01449419,171.73,171.58,66.1651222]
[1721927124078,1.01449419,171.73,171.6,32.91]
[1721927124310,1.01449419,171.73,171.61,66.16490092]
[1721927124607,256.6,171.79,171.62,6.4523]
[1721927124819,1.01439084,171.75,171.63,21.16479926]
[1721927125118,6.09321228,171.79,171.63,21.16479926]
[1721927125321,1.01418145,171.76,171.64,45.0]
[1721927125613,20.0,171.82,171.65,36.9378793]
[1721927125920,1.01420424,171.78,171.65,36.9378793]
[1721927126089,5.8211,171.79,171.65,36.9378793]
[1721927126411,1.01413885,171.77,171.65,36.9378793]
[1721927126717,6.83613885,171.77,171.65,35.7733]
[1721927127008,45.0,171.76,171.65,35.7733]
[1721927127309,1.01413885,171.77,171.66,1.1648142]
[1721927128016,5.8224,171.75,171.65,35.7733]
[1721927128217,1.01413885,171.77,171.65,35.7733]
[1721927128518,1.01413885,171.77,171.66,1.16480768]
[1721927128709,1.01413885,171.77,171.65,35.7733]
[1721927128902,6.83583885,171.77,171.65,36.93810593]
[1721927129118,5.8225,171.75,171.65,35.7733]
[1721927129408,20.0,171.71,171.62,6.4523]
[1721927129616,20.0,171.73,171.62,6.4523]
[1721927129818,25.8237,171.71,171.62,6.4523]
[1721927130027,45.0,171.7,171.62,6.4523]